bitfinex-derivatives/quotes_SOLF0:USTF0_20240918
["timestamp","ask_amount","ask_price","bid_price","bid_amount"]
[1726684568845,3.7917,131.85,131.78,3.7933]
[1726684569032,47.14,131.86,131.66,151.24]
[1726684569333,47.14,131.79,131.66,47.14]
[1726684569526,47.14,131.77,131.64,47.14]
[1726684569727,47.14,131.77,131.66,47.14]
[1726684569930,47.14,131.78,131.66,47.14]
[1726684570133,47.14,131.81,131.71,47.14]
[1726684570438,47.14,131.9,131.78,47.14]
[1726684570638,47.14,131.9,131.66,47.14]
[1726684570838,47.14,131.85,131.72,47.14]
[1726684571033,47.14,131.78,131.66,47.14]
[1726684571844,3.84509292,131.83,131.52,3.78897125]
[1726684572038,47.14,131.79,131.67,47.14]
[1726684572337,47.14,131.86,131.73,47.14]
[1726684572536,151.42,131.93,131.78,47.14]
[1726684572735,47.14,131.92,131.79,47.14]
[1726684572940,47.14,131.89,131.64,7.595]
[1726684573242,50.8805158,131.96,131.82,47.14]
[1726684573433,47.14,131.92,131.79,47.14]
[1726684573633,47.14,131.93,131.8,47.14]
[1726684573837,47.14,131.94,131.55,7.6004]
[1726684574033,47.14,131.86,131.73,47.14]
[1726684574241,47.14,131.84,131.54,151.54]
[1726684574444,47.14,131.79,131.66,47.14]
[1726684574938,47.14,131.76,131.66,47.14]
[1726684575134,47.14,131.84,131.71,47.14]
[1726684575335,47.14,131.86,131.73,46.87566225]
[1726684575537,47.14,131.88,131.77,47.14]
[1726684575740,47.14,131.88,131.75,47.14]
[1726684576042,47.14,131.8,131.53,47.14]
[1726684576344,47.14,131.8,131.46,7.6055]
[1726684576345,47.14,131.73,131.46,7.6055]
[1726684576534,47.14,131.73,131.6,47.14]
[1726684576842,47.14,131.73,131.53,47.14]
[1726684576843,47.14,131.73,131.62,47.14]
[1726684577145,47.14,131.76,131.62,47.14]
[1726684577441,47.14,131.78,131.64,47.14]
[1726684577639,47.14,131.78,131.67,47.14]
[1726684577833,47.14,131.83,131.69,47.14]
[1726684578033,151.62,132.0,131.77,47.14]
[1726684578237,47.14,131.9,131.77,47.14]
[1726684578431,47.14,131.86,131.65,151.62]
[1726684578636,47.14,131.86,131.76,3.7939]
[1726684578835,47.14,131.79,131.55,151.68]
[1726684579134,47.14,131.81,131.73,3.7948]
[1726684579337,47.14,131.76,131.64,47.14]
[1726684579640,44.09358048,131.72,131.59,47.14]
[1726684579937,47.14,131.74,131.62,47.14]
[1726684580136,47.14,131.79,131.66,47.14]
[1726684580337,47.14,131.83,131.71,47.14]
[1726684580547,47.14,131.88,131.73,47.14]
[1726684580739,47.14,131.88,131.76,47.14]
[1726684580939,151.68,131.95,131.73,47.14]
[1726684580940,198.82,131.95,131.8,47.14]
[1726684581130,47.14,131.95,131.83,47.14]
[1726684581336,47.14,131.95,131.81,47.14]
[1726684581540,47.14,131.97,131.83,47.14]
[1726684581738,47.14,131.91,131.67,159.2732]
[1726684581937,47.14,131.91,131.78,47.14]
[1726684582145,47.14,131.93,131.83,47.14]
[1726684582346,47.14,131.93,131.8,47.14]
[1726684582640,0.63764979,131.83,131.8,47.14]
[1726684582839,47.14,132.0,131.94,3.789]
[1726684583041,47.14,132.02,131.89,47.14]
[1726684583241,47.14,132.0,131.85,47.14]
[1726684583439,47.14,132.02,131.89,47.14]
[1726684583642,47.14,132.02,131.8,47.14]
[1726684583643,47.14,131.98,131.75,7.5886]
[1726684583839,151.68,132.05,131.82,47.14]
[1726684583840,47.14,131.95,131.82,47.14]
[1726684584138,47.14,131.97,131.84,47.14]
[1726684584540,47.14,132.0,131.89,47.14]
[1726684584743,47.14,132.0,131.87,47.14]
[1726684584938,3.7853,132.08,132.01,3.7869]
[1726684585142,47.14,132.09,131.97,47.14]
[1726684585346,47.14,132.12,131.99,47.14]
[1726684585649,47.14,132.14,132.01,47.14]
[1726684585844,47.14,132.12,132.01,47.14]
[1726684586045,47.14,132.14,132.04,47.14]
[1726684586237,47.14,132.16,132.04,47.14]
[1726684586549,47.14,132.16,131.98,151.68]
[1726684586550,151.68,132.24,132.08,3.7849]
[1726684586851,47.14,132.19,132.06,47.14]
[1726684587247,47.14,132.19,132.08,47.14]
[1726684587444,47.14,132.19,132.06,47.14]
[1726684588049,47.14,132.16,132.06,47.14]
[1726684588244,47.14,132.19,131.94,3.84984379]
[1726684588444,47.14,132.19,132.03,47.14]
[1726684588445,47.14,132.16,132.03,47.14]
[1726684588641,47.14,132.19,132.06,47.14]
[1726684588944,47.14,132.2,132.06,47.14]
[1726684589244,47.14,132.2,131.99,47.14]
[1726684589245,47.14,132.24,132.13,47.14]
[1726684589456,47.14,132.22,132.11,47.14]
[1726684589838,3.7827,132.16,132.06,47.14]
[1726684590140,47.14,132.15,132.04,151.6]
[1726684590545,151.6,132.25,132.08,47.14]
[1726684590844,3.783,132.15,132.06,47.14]
[1726684591049,47.14,132.18,132.06,47.14]
[1726684591341,47.14,132.2,132.08,47.14]
[1726684591543,47.14,132.2,132.04,151.6]
[1726684591544,198.74,132.25,132.13,47.14]
[1726684591745,47.14,132.15,131.95,151.54]
[1726684591946,47.14,132.13,132.06,3.7855]
[1726684592247,47.14,132.13,132.01,47.14]
[1726684592654,47.14,132.13,132.01,46.56611519]
[1726684592949,47.14,132.08,131.96,47.14]
[1726684593253,47.14,132.05,131.93,47.14]
[1726684593554,47.14,132.03,131.93,3.789]
[1726684593751,47.14,131.97,131.68,7.5928]
[1726684593945,47.14,131.99,131.86,47.14]
[1726684594446,47.14,131.97,131.84,47.14]
[1726684594848,47.14,131.97,131.72,3.70599719]
[1726684595050,47.14,131.97,131.83,47.14]
[1726684595248,47.14,131.97,131.86,3.7912]
[1726684595451,151.54,132.07,131.86,47.14]
[1726684595646,3.7891,131.94,131.88,3.7907]
[1726684595843,47.14,131.98,131.86,47.14]
[1726684596046,47.14,132.0,131.88,47.14]
[1726684596252,47.14,131.96,131.84,47.14]
[1726684596654,47.14,132.0,131.86,47.14]
[1726684596844,47.14,132.0,131.88,47.14]
[1726684597047,47.14,132.04,131.79,69.83]
[1726684597247,47.14,132.04,131.93,47.14]
[1726684597757,47.14,131.97,131.79,47.14]
[1726684597955,47.14,132.0,131.86,47.14]
[1726684598359,3.7874,132.0,131.91,47.14]
[1726684598761,47.14,132.03,131.91,47.14]
[1726684599061,47.14,131.98,131.86,47.14]
[1726684599457,3.7885,131.96,131.86,47.14]
[1726684599659,47.14,132.06,131.9,47.14]
[1726684599660,47.14,132.01,131.9,47.14]
[1726684599856,47.14,132.01,131.86,47.14]
[1726684599857,47.14,132.06,131.93,47.14]
[1726684600058,3.7864,132.03,131.93,47.14]
[1726684600250,47.14,132.06,131.95,47.14]
[1726684600456,47.14,132.09,132.01,3.7869]
[1726684600661,47.14,132.06,131.95,47.14]
[1726684601264,47.14,132.06,131.78,151.54]
[1726684601265,47.14,132.0,131.78,151.54]
[1726684601465,3.7873,132.01,131.95,3.7887]
[1726684601654,47.14,132.03,131.91,47.14]
[1726684602659,0.51649633,131.91,131.86,47.14]
[1726684602860,0.51649633,131.91,131.88,47.14]
[1726684603065,0.51649633,131.91,131.86,47.14]
[1726684603262,0.51649633,131.91,131.89,47.14]
[1726684603759,0.51649633,131.91,131.84,47.14]
[1726684603963,0.51649633,131.91,131.89,47.14]
[1726684604464,0.51649633,131.91,131.84,47.14]
[1726684604667,0.51649633,131.91,131.86,47.14]
[1726684605061,0.51649633,131.91,131.84,47.14]
[1726684605367,0.51649633,131.91,131.82,46.61206836]
[1726684605669,47.14,131.9,131.78,151.54]
[1726684606164,47.14,131.88,131.72,47.14]
[1726684607070,0.51649633,131.91,131.78,47.14]
[1726684607673,0.51649633,131.91,131.9,3.7901]
[1726684607863,0.51649633,131.91,131.87,47.14]
[1726684608169,47.14,131.98,131.87,47.14]
[1726684608470,47.14,132.0,131.87,47.14]
[1726684608670,47.14,131.98,131.85,47.14]
[1726684608869,47.14,132.0,131.87,47.14]
[1726684609172,47.14,131.98,131.85,47.14]
[1726684609381,3.7892,131.94,131.88,3.7904]
[1726684609671,47.14,131.93,131.79,47.14]
[1726684609860,47.14,131.91,131.79,47.14]
[1726684610065,47.14,131.88,131.77,47.14]
[1726684610260,3.7904,131.89,131.79,47.14]
[1726684610568,47.14,132.0,131.69,151.62]
[1726684610569,47.14,131.86,131.74,47.14]
[1726684610764,50.9315,131.86,131.8,3.7928]
[1726684610971,50.9315,131.86,131.74,47.14]
[1726684611165,3.75237406,132.01,131.85,47.14]
[1726684611475,151.62,132.05,131.69,151.62]
[1726684611476,47.14,131.91,131.69,151.62]
[1726684611674,47.14,131.91,131.81,47.14]
[1726684611873,47.14,132.0,131.87,3.7908]
[1726684611874,3.7895,131.93,131.87,3.7908]
[1726684612172,47.14,131.89,131.7,7.5914]
[1726684612473,47.14,131.89,131.79,47.14]
[1726684612870,47.14,131.89,131.76,47.14]
[1726684613166,47.14,131.87,131.74,47.14]
[1726684613375,47.14,131.93,131.66,185.48459246]
[1726684613376,47.14,131.84,131.72,47.14]
[1726684613578,47.14,131.86,131.75,47.14]
[1726684613767,47.14,131.88,131.77,47.14]
[1726684614176,47.14,131.86,131.74,47.14]
[1726684614470,47.14,131.81,131.56,7.5995]
[1726684614671,47.14,131.79,131.68,47.14]
[1726684614868,47.14,131.79,131.59,47.14]
[1726684614869,47.14,131.76,131.65,47.14]
[1726684615063,3.7961,131.7,131.65,3.7971]
[1726684615372,47.14,131.7,131.59,47.14]
[1726684615974,47.14,131.68,131.47,151.68]
[1726684616175,47.14,131.7,131.59,47.14]
[1726684616370,47.14,131.72,131.59,46.62350367]
[1726684616676,47.14,131.68,131.57,47.14]
[1726684616878,47.14,131.68,131.55,47.14]
[1726684617175,3.73909868,131.7,131.57,47.14]
[1726684617374,7.9356332,131.78,131.6,47.14]
[1726684617573,47.14,131.72,131.6,47.14]
[1726684618071,47.14,131.69,131.55,47.14]
[1726684618279,47.14,131.67,131.55,47.14]
[1726684618768,47.14,131.67,131.59,3.799]
[1726684619071,47.14,131.67,131.47,151.68]
[1726684619072,47.14,131.61,131.49,47.14]
[1726684619268,47.14,131.61,131.47,198.82]
[1726684619570,47.14,131.61,131.49,47.14]
[1726684619967,47.14,131.58,131.47,47.14]
[1726684620169,47.14,131.56,131.38,138.10087348]
[1726684620369,47.14,131.58,131.46,47.14]
[1726684620666,47.14,131.55,131.44,47.14]
[1726684620871,47.14,131.58,131.51,3.8012]
[1726684621069,47.14,131.55,131.44,47.14]
[1726684621267,47.14,131.58,131.44,47.14]
[1726684621469,47.14,131.51,131.35,151.76]
[1726684621670,47.14,131.49,131.37,47.14]
[1726684621968,47.14,131.42,131.3,47.14]
[1726684622277,47.14,131.4,131.28,47.14]
[1726684622479,47.14,131.4,131.2,47.14]
[1726684622480,47.14,131.38,131.26,47.14]
[1726684622667,47.14,131.38,131.2,47.14]
[1726684622668,0.41836203,131.3,131.23,47.14]
[1726684622978,47.14,131.29,131.17,47.14]
[1726684623577,0.41836203,131.3,131.23,47.14]
[1726684623763,0.41836203,131.3,131.13,47.14]
[1726684623764,0.41836203,131.3,131.27,47.14]
[1726684623968,0.41836203,131.3,128.69,222.51761409]
[1726684624176,0.41836203,131.3,131.29,47.14]
[1726684624476,0.41836203,131.3,131.29,3.8077]
[1726684624778,0.41836203,131.3,131.29,50.9477]
[1726684624972,0.41836203,131.3,131.29,3.8077]
[1726684625579,0.41836203,131.3,131.2,47.14]
[1726684625774,0.41836203,131.3,131.28,47.14]
[1726684625979,47.14,131.43,131.28,47.14]
[1726684626169,151.88,131.46,131.28,47.14]
[1726684626170,47.14,131.4,131.28,47.14]
[1726684626365,47.14,131.45,131.33,47.14]
[1726684626570,47.14,131.44,131.33,47.14]
[1726684627477,47.14,131.5,131.38,47.14]
[1726684627678,47.14,131.52,131.4,47.14]
[1726684627873,47.14,131.57,131.44,47.14]
[1726684628069,47.14,131.57,131.54,3.8005]
[1726684628268,47.14,131.59,131.47,47.14]
[1726684628474,47.14,131.59,131.33,47.14]
[1726684628475,47.14,131.56,131.42,47.14]
[1726684628674,47.14,131.54,131.42,47.14]
[1726684628878,47.14,131.6,131.47,47.14]
[1726684629078,47.14,131.6,131.49,47.14]
[1726684629274,47.14,131.6,131.4,47.14]
[1726684629480,47.14,131.58,131.47,47.14]
[1726684629679,47.14,131.58,131.44,47.14]
[1726684629882,47.14,131.56,131.44,47.14]
[1726684630180,47.14,131.6,131.4,47.14]
[1726684630181,47.14,131.64,131.52,47.14]
[1726684630680,47.14,131.62,131.5,47.14]
[1726684630982,47.14,131.64,131.54,47.14]
[1726684631182,47.14,131.64,131.52,47.14]
[1726684631378,47.14,131.67,131.54,47.14]
[1726684631978,47.14,131.69,131.59,47.14]
[1726684632179,47.14,131.74,131.61,47.14]
[1726684632377,47.14,131.74,131.63,47.14]
[1726684632579,0.37652582,131.61,131.6,3.7988]
[1726684633276,0.37652582,131.61,131.55,152.1]
[1726684633584,0.37652582,131.61,131.56,47.14]
[1726684633782,0.37652582,131.61,131.6,3.7988]
[1726684634580,0.37652582,131.61,131.53,47.14]
[1726684635089,0.37652582,131.61,131.52,47.14]
[1726684635382,0.37652582,131.61,131.5,47.14]
[1726684635585,47.14,131.57,131.46,152.06]
[1726684635782,47.14,131.59,131.48,47.14]
[1726684635985,0.37652582,131.61,131.52,47.14]
[1726684636181,0.37652582,131.61,131.6,3.7988]
[1726684637279,47.14,131.73,131.68,3.7963]
[1726684637477,199.2,131.8,131.63,47.14]
[1726684637478,47.14,131.75,131.63,47.14]
[1726684637885,47.14,131.75,131.65,47.14]
[1726684638181,47.14,131.77,131.65,47.14]
[1726684638388,54.719,131.93,131.68,47.14]
[1726684638389,47.14,131.8,131.68,47.14]
[1726684638585,47.14,131.82,131.7,47.14]
[1726684639183,47.14,131.82,131.72,47.14]
[1726684639491,47.14,131.84,131.79,3.793]
[1726684639791,47.14,131.84,131.72,47.14]
[1726684640292,47.14,131.86,131.74,47.14]
[1726684640477,47.14,131.89,131.77,47.14]
[1726684640685,47.14,131.86,131.74,47.14]
[1726684640987,3.80010583,131.92,131.74,47.14]
[1726684640988,47.14,131.84,131.74,47.14]
[1726684641187,47.14,131.86,131.74,47.14]
[1726684641485,47.14,131.86,131.72,47.14]
[1726684641687,47.14,131.88,131.79,47.14]
[1726684641987,47.14,131.88,131.76,47.14]
[1726684642384,47.14,131.86,131.76,47.14]
[1726684642578,0.33887324,131.76,131.73,47.14]
[1726684642784,0.33887324,131.76,131.71,199.14]
[1726684643183,0.33887324,131.76,131.71,152.0]
[1726684643585,0.33887324,131.76,131.71,199.14]
[1726684643791,0.33887324,131.76,131.75,3.7944]
[1726684644093,47.14,131.88,131.75,47.14]
[1726684644283,47.14,131.86,131.72,47.14]
[1726684644786,47.14,131.84,131.72,47.14]
[1726684645586,47.14,131.81,131.7,47.14]
[1726684645888,47.14,131.81,131.68,199.02]
[1726684646095,7.5727,132.04,131.75,47.14]
[1726684646283,3.7922,131.83,131.77,3.7938]
[1726684646481,47.14,131.83,131.72,47.14]
[1726684647092,47.14,131.85,131.72,47.14]
[1726684648191,47.14,131.86,131.72,47.14]
[1726684648383,47.14,131.83,131.68,151.88]
[1726684648584,47.14,131.78,131.67,47.14]
[1726684649094,47.14,131.75,131.62,47.14]
[1726684649295,47.14,131.77,131.65,47.14]
[1726684649494,50.9341,131.77,131.71,3.7955]
[1726684649695,47.14,131.77,131.67,47.14]
[1726684649898,47.14,131.77,131.71,3.7953]
[1726684650199,47.14,131.75,131.65,47.14]
[1726684650402,47.14,131.75,131.67,3.7967]
[1726684650698,47.14,131.75,131.62,47.14]
[1726684650993,47.14,131.73,131.59,151.86]
[1726684651189,47.14,131.73,131.61,47.14]
[1726684651391,47.14,131.75,131.61,47.14]
[1726684651596,47.14,131.73,131.61,47.14]
[1726684651796,47.14,131.77,131.66,47.14]
[1726684652486,47.14,131.77,131.59,199.0]
[1726684652487,50.9334,131.79,131.68,47.14]
[1726684652688,47.14,131.79,131.68,46.83501408]
[1726684652888,47.14,131.77,131.66,47.14]
[1726684653096,47.14,131.75,131.63,47.14]
[1726684653596,47.14,131.73,131.61,199.0]
[1726684653803,47.14,131.73,131.61,151.86]
[1726684654093,3.80192857,131.82,131.66,47.14]
[1726684654292,47.14,131.79,131.66,47.14]
[1726684654486,3.7953,131.73,131.67,3.7967]
[1726684654695,47.14,131.74,131.64,47.14]
[1726684654893,47.14,131.76,131.64,47.14]
[1726684655087,47.14,131.76,131.66,47.14]
[1726684655599,47.14,131.8,131.68,47.14]
[1726684656299,47.14,131.76,131.64,47.14]
[1726684656695,47.14,131.78,131.7,3.7956]
[1726684657002,47.14,131.78,131.66,47.14]
[1726684657802,3.7943,131.76,131.71,3.7954]
[1726684657998,47.14,131.78,131.58,7.5983]
[1726684658191,47.14,131.78,131.65,47.14]
[1726684658388,47.14,131.78,131.67,47.14]
[1726684658796,3.7942,131.76,131.67,47.14]
[1726684658989,47.14,131.8,131.69,47.14]
[1726684659501,47.14,131.8,131.67,47.14]
[1726684659901,47.14,131.78,131.65,47.14]
[1726684660299,50.9087981,131.78,131.65,47.14]
[1726684660699,47.14,131.75,131.65,47.14]
[1726684661000,3.7687981,131.78,131.61,7.5969]
[1726684661001,47.14,131.8,131.67,47.14]
[1726684661199,151.86,131.86,131.71,47.14]
[1726684661405,47.14,131.85,131.61,26.53623135]
[1726684661595,47.14,131.85,131.74,47.14]
[1726684661796,51.02456841,131.85,131.74,47.14]
[1726684662000,3.7925,131.82,131.76,3.7941]
[1726684662200,47.14,131.83,131.71,47.14]
[1726684662408,47.14,131.81,131.69,47.14]
[1726684662592,0.27448732,131.71,131.69,47.14]
[1726684662992,51.02456841,131.85,131.69,47.14]
[1726684663201,47.14,131.85,131.73,47.14]
[1726684663793,47.14,131.85,131.66,47.14]
[1726684663794,47.14,131.81,131.71,47.14]
[1726684663996,47.14,131.79,131.69,47.14]
[1726684664204,47.14,131.79,131.66,47.14]
[1726684664506,47.14,131.81,131.7,47.14]
[1726684664811,47.14,131.85,131.76,3.7941]
[1726684665000,47.14,131.85,131.73,47.14]
[1726684665497,3.7923,131.83,131.73,47.14]
[1726684665698,47.14,131.85,131.73,47.14]
[1726684665900,50.9316,131.85,131.73,47.14]
[1726684666209,47.14,131.85,131.73,47.14]
[1726684666709,47.14,131.83,131.73,47.14]
[1726684666909,47.14,131.81,131.7,47.14]
[1726684667102,3.80551024,131.87,131.57,151.84]
[1726684667299,47.14,131.83,131.71,47.14]
[1726684667503,47.14,131.8,131.69,47.14]
[1726684667906,47.14,131.78,131.66,47.14]
[1726684668414,47.14,131.82,131.71,47.14]
[1726684668609,3.7928,131.81,131.75,3.7942]
[1726684668814,47.14,131.82,131.71,47.14]
[1726684669200,3.7942,131.76,131.7,3.7958]
[1726684669510,47.14,131.78,131.66,47.14]
[1726684669706,47.14,131.8,131.68,47.14]
[1726684670012,47.14,131.82,131.71,47.14]
[1726684670310,3.793,131.8,131.74,3.7945]
[1726684670504,50.89996709,131.86,131.71,47.14]
[1726684670505,47.14,131.85,131.71,47.14]
[1726684670711,47.14,131.82,131.71,47.14]
[1726684672208,47.14,131.8,131.68,47.14]
[1726684672607,0.24703859,131.71,131.68,47.14]
[1726684672811,47.14,131.83,131.7,47.14]
[1726684673012,47.14,131.87,131.75,47.14]
[1726684673204,47.14,131.89,131.77,47.14]
[1726684673704,3.7905,131.89,131.79,47.14]
[1726684673911,47.14,131.91,131.79,47.14]
[1726684674218,3.792,131.84,131.78,3.7935]
[1726684674414,47.14,131.87,131.75,47.14]
[1726684674716,50.87643245,131.87,131.75,47.14]
[1726684674920,47.14,131.87,131.75,47.14]
[1726684675116,47.14,131.91,131.79,47.14]
[1726684675417,3.7905,131.89,131.79,47.14]
[1726684675718,47.14,131.93,131.82,47.14]
[1726684675916,47.14,131.93,131.73,7.5901]
[1726684675917,47.14,131.95,131.87,3.7908]
[1726684676215,47.14,131.95,131.84,47.14]
[1726684676420,3.7893,131.93,131.87,3.7909]
[1726684676607,47.14,131.97,131.86,47.14]
[1726684677004,3.80870931,131.96,131.86,47.14]
[1726684677218,47.14,131.92,131.79,47.14]
[1726684677414,47.14,131.9,131.79,47.14]
[1726684678519,3.7899,131.91,131.84,3.7918]
[1726684678718,47.14,131.92,131.81,47.14]
[1726684679420,50.91693638,131.92,131.81,47.14]
[1726684679715,47.14,131.9,131.79,47.14]
[1726684679916,47.14,131.9,131.77,47.14]
[1726684680319,47.14,131.91,131.77,47.14]
[1726684680514,47.14,131.96,131.84,47.14]
[1726684680909,3.7901,131.91,131.84,47.14]
[1726684681223,47.14,131.96,131.84,47.14]
[1726684681421,50.88308115,132.0,131.79,47.14]
[1726684681422,47.14,131.98,131.86,47.14]
[1726684682215,50.88308115,132.0,131.88,47.14]
[1726684682427,47.14,131.98,131.86,47.14]
[1726684682817,3.70470408,131.98,131.86,47.14]
[1726684683021,47.14,132.0,131.86,47.14]
[1726684683324,47.14,132.02,131.88,47.14]
[1726684683819,47.14,132.04,131.91,47.14]
[1726684684219,3.7881,131.98,131.92,3.7895]
[1726684684517,3.71304459,132.01,131.91,47.14]
[1726684684724,3.7878,131.98,131.93,3.7892]
[1726684684915,47.14,132.05,131.93,47.14]
[1726684685418,3.72290156,132.04,131.93,47.14]
[1726684685620,47.14,132.05,131.93,47.14]
[1726684685815,47.14,132.05,131.86,151.72]
[1726684685816,3.7866,132.03,131.95,47.14]
[1726684686016,47.14,132.08,131.95,47.14]
[1726684686226,47.14,132.08,131.97,47.14]
[1726684686420,47.14,132.1,131.97,47.14]
[1726684686623,47.14,132.1,132.0,47.14]
[1726684686826,50.83646906,132.1,132.0,47.14]
[1726684687025,50.83646906,132.1,131.97,47.14]
[1726684687520,50.83646906,132.1,131.92,47.14]
[1726684687521,47.14,132.07,131.95,47.14]
[1726684687923,3.85337855,132.1,131.98,47.14]
[1726684688231,47.14,132.13,132.0,47.14]
[1726684688420,50.94448646,132.13,131.9,3.78212497]
[1726684688620,47.14,132.11,131.99,47.14]
[1726684689125,3.7852,132.08,131.99,47.14]
[1726684689428,47.14,132.1,131.99,47.14]
[1726684689623,47.14,132.08,131.96,47.14]
[1726684690032,47.14,132.06,131.94,47.14]
[1726684690322,47.14,132.04,131.92,198.8]
[1726684690528,47.14,132.01,131.89,47.14]
[1726684690732,3.7884,131.96,131.9,3.7899]
[1726684691030,47.14,132.01,131.9,3.7899]
[1726684691225,47.14,131.99,131.88,3.7907]
[1726684691428,50.93366469,131.99,131.87,47.14]
[1726684691629,47.14,131.96,131.79,289.81895319]
[1726684691928,151.62,132.04,131.88,47.14]
[1726684692131,151.62,132.04,131.9,47.14]
[1726684692331,47.14,132.01,131.9,47.14]
[1726684692929,3.7879,131.98,131.92,3.7895]
[1726684693228,47.14,132.01,131.9,47.14]
[1726684693435,47.14,132.01,131.79,206.3464]
[1726684693436,47.14,131.99,131.87,47.14]
[1726684693931,47.14,131.92,131.79,47.14]
[1726684694429,50.92155233,131.92,131.79,47.14]
[1726684694631,47.14,131.9,131.79,47.14]
[1726684694825,47.14,131.9,131.77,50.9338]
[1726684695027,47.14,131.9,131.77,47.14]
[1726684695231,47.14,131.88,131.77,47.14]
[1726684695428,47.14,131.9,131.77,47.14]
[1726684695822,47.14,131.9,131.79,47.14]
[1726684696025,50.91192098,131.9,131.79,47.14]
[1726684696226,47.14,131.88,131.77,47.14]
[1726684697432,50.91192098,131.9,131.77,47.14]
[1726684697731,3.77192098,131.9,131.79,47.14]
[1726684697924,3.7901,131.91,131.85,3.7914]
[1726684698128,3.7901,131.91,131.72,47.14]
[1726684698129,155.37257001,131.95,131.84,47.14]
[1726684698331,47.14,131.94,131.82,47.14]
[1726684698928,155.37257001,131.95,131.84,47.14]
[1726684699130,47.14,131.98,131.86,47.14]
[1726684699332,47.14,131.96,131.84,47.14]
[1726684699632,151.68,132.03,131.84,47.14]
[1726684699839,47.14,132.0,131.89,47.14]
[1726684700330,47.14,131.98,131.86,47.14]
[1726684700535,47.14,131.96,131.84,47.14]
[1726684700736,47.14,131.94,131.82,47.14]
[1726684701532,50.88867683,131.98,131.84,47.14]
[1726684701724,47.14,132.0,131.89,47.14]
[1726684701925,47.14,131.98,131.84,47.14]
[1726684702127,47.14,131.96,131.84,47.14]
[1726684702324,50.9599548,131.98,131.84,47.14]
[1726684702530,47.14,132.0,131.86,47.14]
[1726684702735,47.14,132.0,131.89,47.14]
[1726684702941,47.14,132.0,131.86,47.14]
[1726684703132,47.14,131.98,131.86,47.14]